bitfinex/quotes_BTCUSD_20260308
["timestamp","ask_amount","ask_price","bid_price","bid_amount"]
[1773011565283,0.12045811,66234.0,66217.0,0.4633953]
[1773011565637,0.12045811,66234.0,66218.0,0.01299882]
[1773011565638,0.07571044,66234.0,66218.0,0.01299882]
[1773011565835,0.02988959,66235.0,66220.0,0.38768573]
[1773011566036,0.02988959,66235.0,66221.0,0.01279856]
[1773011566390,0.07549043,66234.0,66222.0,0.00156]
[1773011566963,0.07549043,66234.0,66223.0,0.07550246]
[1773011567817,0.1202381,66234.0,66223.0,0.07550246]
[1773011570027,0.04474767,66233.0,66223.0,0.07550246]
[1773011570610,0.07549043,66234.0,66224.0,0.04466507]
[1773011571191,0.07548423,66239.0,66225.0,0.07550018]
[1773011571433,0.00022001,66234.0,66225.0,0.07550018]
[1773011572245,0.00022001,66234.0,66226.0,0.04466507]
[1773011572643,0.12023083,66240.0,66226.0,0.04466507]
[1773011572644,0.07548316,66240.0,66226.0,0.04466507]
[1773011573546,0.07548316,66240.0,66227.0,0.0754979]
[1773011573696,0.07548316,66240.0,66228.0,0.04622507]
[1773011575401,0.07570212,66241.0,66228.0,0.04622507]
[1773011575603,0.07570212,66241.0,66229.0,0.12016069]
[1773011575734,0.07570212,66241.0,66229.0,0.11999292]
[1773011576135,0.48597932,66241.0,66229.0,0.07532785]
[1773011577982,0.00022001,66240.0,66229.0,0.07532785]
[1773011579002,0.00022001,66240.0,66229.0,0.07499233]
[1773011579195,0.00022001,66240.0,66229.0,0.07482458]
[1773011579880,0.00022001,66240.0,66229.0,0.11948965]
[1773011580077,0.07570311,66240.0,66229.0,0.11948965]
[1773011580283,0.00022001,66240.0,66229.0,0.11948965]
[1773011580486,0.00022001,66240.0,66230.0,0.04466507]
[1773011580687,0.00588001,66248.0,66232.0,0.04466507]
[1773011580942,0.08135407,66248.0,66234.0,0.04466507]
[1773011581103,0.07569525,66247.0,66234.0,0.04466507]
[1773011582109,0.00022001,66247.0,66236.0,0.04466507]
[1773011582819,0.07569567,66247.0,66236.0,0.04466507]
[1773011583219,0.00027976,66247.0,66236.0,0.04466507]
[1773011583553,0.04474767,66263.0,66235.0,0.07548878]
[1773011583705,0.00039573,66263.0,66239.0,0.34014577]
[1773011583908,0.00039573,66263.0,66242.0,0.04466507]
[1773011584116,0.40651401,66260.0,66239.0,0.04466507]
[1773011584318,0.04474767,66257.0,66240.0,0.00156]
[1773011584569,0.36176634,66254.0,66241.0,0.00156]
[1773011584759,0.36176634,66252.0,66241.0,0.00156]
[1773011584958,0.36176634,66250.0,66241.0,0.00156]
[1773011585136,0.04474767,66248.0,66241.0,0.00156]
[1773011585351,0.04474767,66248.0,66239.0,0.001]
[1773011585553,0.04474767,66248.0,66240.0,0.00156]
[1773011585754,0.04474767,66248.0,66238.0,0.07548537]
[1773011585960,0.40651401,66248.0,66241.0,0.00156]
[1773011586193,0.48198849,66248.0,66242.0,0.07548081]
[1773011586414,0.07547448,66248.0,66243.0,0.00156]
[1773011586551,0.04200152,66246.0,66243.0,0.00156]
[1773011586754,0.04200152,66246.0,66241.0,0.07548182]
[1773011586954,0.34680146,66249.0,66242.0,0.00156]
[1773011587147,0.07568716,66254.0,66242.0,0.00156]
[1773011587464,0.07568716,66254.0,66242.0,0.00139227]
[1773011587967,0.00022001,66254.0,66243.0,0.04087976]
[1773011588365,0.00022001,66254.0,66245.0,0.04087976]
[1773011589993,0.00022001,66261.0,66245.0,0.36323953]
[1773011590193,0.00856999,66260.0,66246.0,0.03948755]
[1773011590398,0.07567919,66261.0,66248.0,0.03948755]
[1773011590730,0.00039573,66263.0,66250.0,0.03948755]
[1773011590863,0.0002405,66264.0,66251.0,0.03948755]
[1773011591063,0.0002405,66264.0,66251.0,0.03988328]
[1773011591266,0.0002405,66264.0,66253.0,0.03948755]
[1773011592600,0.0002405,66264.0,66254.0,0.07546714]
[1773011592805,0.0002405,66264.0,66255.0,0.04104755]
[1773011592806,1e-08,66264.0,66255.0,0.04104755]
[1773011593535,1e-08,66264.0,66255.0,0.03948755]
[1773011593833,0.04205746,66263.0,66256.0,0.00156]
[1773011595523,0.04205746,66263.0,66257.0,0.07546372]
[1773011595943,0.00022002,66264.0,66257.0,0.07546372]
[1773011596371,0.11773325,66264.0,66258.0,0.00156]
[1773011596562,0.04227748,66264.0,66258.0,0.00156]
[1773011596792,0.00022002,66264.0,66258.0,0.00156]
[1773011597721,0.00022002,66264.0,66259.0,0.07546144]
[1773011598001,0.00022001,66265.0,66259.0,0.07546144]
[1773011598127,1e-08,66267.0,66260.0,0.03948755]
[1773011599767,1e-08,66267.0,66261.0,0.11494671]
[1773011600416,0.07544557,66273.0,66261.0,0.11494671]
[1773011600417,0.0236283,66423.0,66261.0,0.11494671]
[1773011600589,0.42224468,66275.0,66261.0,0.11494671]
[1773011600791,0.34680146,66275.0,66262.0,0.03948755]
[1773011601146,0.00022001,66276.0,66264.0,0.03948755]
[1773011601620,0.00022001,66276.0,66265.0,0.07545461]
[1773011601839,1e-08,66285.0,66269.0,0.03948755]
[1773011602052,1e-08,66285.0,66268.0,0.36323953]
[1773011602053,0.34680146,66295.0,66272.0,0.36323953]
[1773011602228,0.34680146,66295.0,66275.0,0.40272708]
[1773011602451,0.34680146,66295.0,66276.0,0.04104755]
[1773011602619,0.34680146,66295.0,66265.0,0.07545461]
[1773011602620,0.34680146,66293.0,66277.0,0.00156]
[1773011602947,0.0761196,66296.0,66265.0,0.43869414]
[1773011602948,0.00022001,66283.0,66278.0,0.00156]
[1773011603168,0.00022001,66283.0,66271.0,0.03948755]
[1773011603169,0.34680146,66295.0,66279.0,0.00156]
[1773011603298,0.00022001,66290.0,66280.0,0.00156]
[1773011603899,0.00022001,66290.0,66281.0,0.07543639]
[1773011605184,0.34680146,66301.0,66282.0,0.03948755]
[1773011605388,0.35613146,66300.0,66282.0,0.03948755]
[1773011605875,0.00933,66300.0,66285.0,0.03948755]
[1773011606080,0.00933,66300.0,66287.0,0.03948755]
[1773011606624,0.35613146,66300.0,66287.0,0.03948755]
[1773011607452,0.0003674,66305.0,66287.0,0.36323953]
[1773011607681,0.00048603,66305.0,66289.0,0.03948755]
[1773011607878,0.00048603,66305.0,66290.0,0.03948755]
[1773011608082,0.00048603,66305.0,66292.0,0.03948755]
[1773011608396,0.07589608,66305.0,66294.0,0.03948755]
[1773011608536,0.34680146,66302.0,66293.0,0.00156]
[1773011608739,0.34680146,66302.0,66291.0,0.07542501]
[1773011608935,0.34680146,66300.0,66291.0,0.07542501]
[1773011609143,0.38885892,66300.0,66292.0,0.00156]
[1773011610140,0.34680146,66300.0,66293.0,0.07542274]
[1773011610858,0.04205746,66301.0,66275.0,0.07544248]
[1773011611080,0.34680146,66298.0,66276.0,0.00156]
[1773011611283,0.04205746,66295.0,66276.0,0.03948755]
[1773011611483,0.34680146,66292.0,66277.0,0.00156]
[1773011611712,0.38885892,66292.0,66277.0,0.00156]
[1773011611912,0.34680146,66292.0,66278.0,0.00156]
[1773011612113,0.07541267,66302.0,66282.0,0.36323953]
[1773011612277,0.07541099,66304.0,66285.0,0.03948755]
[1773011612476,0.07541099,66304.0,66287.0,0.03948755]
[1773011613100,0.41752632,66304.0,66287.0,0.03948755]
[1773011614087,0.00070604,66305.0,66289.0,0.03948755]
[1773011614302,0.07611532,66305.0,66289.0,0.03948755]
[1773011614795,0.07611532,66305.0,66290.0,0.34455824]
[1773011614796,0.00070604,66305.0,66290.0,0.34455824]
[1773011614964,0.00070604,66305.0,66292.0,0.34455824]
[1773011615170,0.00070604,66305.0,66293.0,0.04104755]
[1773011616004,0.00070604,66305.0,66293.0,0.03948755]
[1773011616005,0.07611531,66305.0,66293.0,0.03948755]
[1773011616209,0.07611531,66305.0,66294.0,0.11646915]
[1773011616555,0.00070604,66305.0,66294.0,0.11646915]
[1773011616752,0.00070604,66305.0,66294.0,0.0769816]
[1773011616994,0.00070604,66305.0,66295.0,0.03948755]
[1773011618166,0.00070604,66305.0,66296.0,0.07541933]
[1773011618394,0.00070604,66305.0,66297.0,0.03948755]
[1773011619348,0.00070604,66305.0,66296.0,0.07541933]
[1773011619553,0.03913025,66303.0,66285.0,0.07543184]
[1773011619707,0.34211533,66300.0,66286.0,0.03691239]
[1773011619930,0.34211533,66298.0,66286.0,0.03847239]
[1773011620648,0.41752897,66301.0,66287.0,0.07698957]
[1773011620848,0.38124558,66301.0,66287.0,0.07698957]
[1773011621068,0.38124558,66301.0,66287.0,0.07542957]
[1773011621274,0.38124558,66301.0,66288.0,0.00156]
[1773011622807,0.38124558,66301.0,66289.0,0.07542729]
[1773011624002,0.38146559,66301.0,66289.0,0.07542729]
[1773011624205,0.41774947,66301.0,66289.0,0.11233968]
[1773011624563,0.34233534,66301.0,66289.0,0.11233968]
[1773011625489,0.00022001,66301.0,66290.0,0.03691239]
[1773011625668,0.00070604,66305.0,66291.0,0.03691239]
[1773011625879,0.00070604,66305.0,66293.0,0.03691239]
[1773011626078,0.00070604,66305.0,66295.0,0.03691239]
[1773011627611,0.00070604,66305.0,66297.0,0.03691239]
[1773011629932,0.00070604,66305.0,66298.0,0.07541705]
[1773011630265,0.00070604,66305.0,66299.0,0.00156]
[1773011631416,0.00070604,66305.0,66299.0,0.03847239]
[1773011631619,0.07540013,66313.0,66299.0,0.03847239]
[1773011631620,1e-08,66312.0,66300.0,0.34455824]
[1773011631856,0.07540124,66312.0,66299.0,0.00156]
[1773011632061,0.38124558,66308.0,66300.0,0.00156]
[1773011632291,0.00022001,66305.0,66300.0,0.00167863]
[1773011632483,0.34233534,66305.0,66301.0,0.00156]
[1773011632610,0.38124558,66304.0,66301.0,0.00156]
[1773011632810,0.38124558,66304.0,66302.0,0.00156]
[1773011633033,0.38136414,66304.0,66302.0,0.00156]
[1773011633228,0.34223389,66304.0,66295.0,0.0002]
[1773011633436,0.38124558,66302.0,66295.0,0.0002]
[1773011633637,0.38124558,66302.0,66296.0,0.00156]
[1773011633981,0.00011856,66304.0,66298.0,0.07541705]
[1773011634400,0.38983467,66303.0,66298.0,0.07541705]
[1773011634595,0.34211533,66303.0,66299.0,0.00156]
[1773011635248,0.34211533,66303.0,66295.0,0.0002]
[1773011635449,0.00859102,66302.0,66296.0,0.07697705]
[1773011635701,0.34211533,66302.0,66297.0,0.00156]
[1773011635902,0.34211533,66302.0,66298.0,0.00156]
[1773011636113,0.41752785,66302.0,66298.0,0.00156]
[1773011636416,0.41752786,66302.0,66299.0,0.00156]
[1773011636794,0.34211533,66302.0,66299.0,0.00156]
[1773011637323,0.07552886,66304.0,66299.0,0.00156]
[1773011637544,0.00859347,66303.0,66300.0,0.00156]
[1773011637738,0.00859347,66302.0,66300.0,0.00156]
[1773011637944,0.07552942,66304.0,66297.0,0.07541815]
[1773011638173,0.00859347,66303.0,66299.0,0.0754152]
[1773011638346,0.00859347,66302.0,66295.0,0.0002]
[1773011638573,0.34211533,66303.0,66288.0,0.0002]
[1773011638744,0.34211533,66303.0,66287.0,0.07542843]
[1773011638745,0.34211533,66300.0,66287.0,0.07542843]
[1773011638915,0.34211533,66298.0,66288.0,0.00156]
[1773011639117,0.00156,66303.0,66288.0,0.00156]
[1773011639118,0.34211533,66296.0,66288.0,0.00156]
[1773011639421,0.0085934,66295.0,66288.0,0.00156]
[1773011639618,0.35070873,66294.0,66282.0,0.07543526]
[1773011639895,0.0085934,66293.0,66283.0,0.00156]
[1773011640075,0.07542274,66293.0,66284.0,0.07543298]
[1773011640273,0.07542274,66293.0,66284.0,0.07699298]
[1773011640475,0.41753807,66293.0,66284.0,0.00156]
[1773011640711,0.41753807,66293.0,66288.0,0.0002]
[1773011640913,0.41753807,66293.0,66285.0,0.00156]
[1773011641122,0.41753807,66293.0,66281.0,0.07563597]
[1773011641333,0.00859026,66292.0,66284.0,0.00156]
[1773011641538,0.34211533,66292.0,66284.0,0.00156]
[1773011641769,0.00156,66303.0,66285.0,0.34455824]
[1773011642030,0.15057217,66305.0,66289.0,0.34455824]
[1773011642275,1e-08,66312.0,66295.0,0.06934737]
[1773011642464,1e-08,66312.0,66291.0,0.07542501]
[1773011642682,0.34211533,66311.0,66291.0,0.07542501]
[1773011642880,0.34211533,66311.0,66292.0,0.00156]
[1773011643082,0.34211533,66311.0,66293.0,0.06945503]
[1773011643200,0.00156001,66312.0,66295.0,0.06945503]
[1773011643400,0.00156001,66312.0,66296.0,0.06945503]
[1773011644226,0.00156001,66312.0,66298.0,0.06945503]
[1773011644227,1e-08,66312.0,66298.0,0.06945503]
[1773011644422,1e-08,66312.0,66299.0,0.06945503]
[1773011644666,1e-08,66312.0,66296.0,0.07541926]
[1773011644867,1e-08,66312.0,66293.0,0.07542274]
[1773011645090,1e-08,66312.0,66293.0,0.00156]
[1773011645091,0.33032217,66311.0,66293.0,0.00156]
[1773011645678,0.33049977,66311.0,66288.0,0.0754278]
[1773011645886,0.33061835,66311.0,66266.0,0.07545276]
[1773011646082,0.33061835,66311.0,66282.0,0.07699481]
[1773011646291,0.32963314,66309.0,66283.0,0.00156]
[1773011646489,0.32963314,66309.0,66283.0,0.07099265]
[1773011646818,0.32981074,66309.0,66284.0,0.00156]
[1773011647136,0.32963314,66308.0,66283.0,0.06943265]
[1773011647337,0.32963314,66308.0,66284.0,0.00156]
[1773011647833,0.32981074,66308.0,66285.0,0.06943265]
[1773011648090,0.32981074,66308.0,66281.0,0.0002]
[1773011648254,0.07540681,66307.0,66281.0,0.00176]
[1773011648426,0.33119314,66306.0,66282.0,0.00156]
[1773011648778,0.33119314,66306.0,66283.0,0.00156]
[1773011649189,0.33119314,66306.0,66284.0,0.00156]
[1773011649389,0.33119314,66306.0,66280.0,0.08640616]
[1773011649624,0.33119314,66306.0,66281.0,0.00156]
[1773011650003,0.33119314,66306.0,66282.0,0.00156]
[1773011651332,0.32963314,66304.0,66282.0,0.00156]
[1773011651856,0.32963314,66304.0,66280.0,0.00156]
[1773011652028,0.32963314,66304.0,66281.0,0.00156]
[1773011652570,0.32963314,66304.0,66282.0,0.00156]
[1773011652782,0.07540909,66305.0,66286.0,0.06934373]
[1773011652985,0.07540909,66305.0,66296.0,0.00563]
[1773011653720,0.07540909,66305.0,66295.0,0.05104988]
[1773011653919,0.00858516,66304.0,66295.0,0.02104988]
[1773011654130,0.00858516,66303.0,66294.0,0.06195361]
[1773011654469,0.00858516,66302.0,66295.0,0.04541988]
[1773011654617,0.00858516,66301.0,66295.0,0.01541988]
[1773011654987,0.07540909,66305.0,66294.0,0.04737349]
[1773011655284,0.07541136,66303.0,66294.0,0.04737349]
[1773011655453,0.00858509,66302.0,66294.0,0.04737349]
[1773011655631,0.00858509,66301.0,66294.0,0.12279407]
[1773011655837,0.07541136,66303.0,66294.0,0.12279407]
[1773011656030,0.00858504,66302.0,66294.0,0.12279407]
[1773011656231,0.00858504,66301.0,66294.0,0.12279407]
[1773011656453,0.07541136,66304.0,66294.0,0.12279407]
[1773011656454,0.07541136,66304.0,66295.0,0.05971619]
[1773011657024,0.07541136,66304.0,66294.0,0.07698058]
[1773011658287,0.07541136,66304.0,66294.0,0.14029853]
[1773011660093,0.07540685,66307.0,66297.0,0.06332762]
[1773011660306,0.00011858,66311.0,66300.0,0.35643339]
[1773011660504,0.07539544,66317.0,66301.0,0.06488762]
[1773011660703,0.07539544,66317.0,66304.0,0.06322902]
[1773011662507,0.075614,66319.0,66308.0,0.06313509]
[1773011662751,0.075614,66319.0,66310.0,0.06313509]
[1773011663815,0.075614,66319.0,66311.0,0.00156]
[1773011664872,0.32963314,66318.0,66301.0,0.07553161]
[1773011665071,0.32963314,66316.0,66302.0,0.00156]
[1773011665216,0.32963314,66316.0,66303.0,0.00156]
[1773011665910,0.32963314,66316.0,66301.0,0.00011858]
[1773011666208,0.32963314,66316.0,66302.0,0.00156]
[1773011666898,0.32963314,66314.0,66291.0,0.07562449]
[1773011667043,0.3297517,66314.0,66296.0,0.00156]
[1773011667540,0.3297517,66314.0,66292.0,0.13846614]
[1773011667756,0.32963314,66312.0,66293.0,0.00156]
[1773011667954,0.00011856,66314.0,66292.0,0.06304226]
[1773011667955,0.32963314,66310.0,66292.0,0.06304226]
[1773011668179,0.32963314,66310.0,66293.0,0.00156]
[1773011668594,0.32963314,66310.0,66291.0,0.07562498]
[1773011668804,0.32963314,66310.0,66292.0,0.00156]
[1773011669028,0.32963314,66308.0,66293.0,0.07542274]
[1773011669318,0.07539999,66313.0,66297.0,0.35643339]
[1773011669517,0.07539999,66313.0,66300.0,0.06295339]
[1773011669667,0.07539999,66313.0,66301.0,0.35643339]
[1773011669862,0.07539999,66313.0,66302.0,0.06295339]
[1773011671118,0.07539999,66313.0,66303.0,0.06223582]
[1773011671327,0.40503313,66313.0,66300.0,0.07541409]
[1773011671497,0.40503313,66313.0,66304.0,0.00156]
[1773011672009,0.40503313,66313.0,66300.0,0.07541409]
[1773011672220,0.40503313,66313.0,66301.0,0.00156]
[1773011672593,0.00845892,66312.0,66301.0,0.00156]
[1773011672798,0.40503313,66313.0,66301.0,0.00156]
[1773011673011,0.00845892,66312.0,66301.0,0.00156]
[1773011673217,0.00022001,66310.0,66301.0,0.07697275]
[1773011673643,0.00022001,66310.0,66301.0,0.13911785]
[1773011675662,0.07540454,66309.0,66301.0,0.00156]
[1773011676309,0.07540454,66309.0,66302.0,0.00156]
[1773011676731,0.03651078,66310.0,66302.0,0.00156]
[1773011676905,0.07540454,66309.0,66302.0,0.00156]
[1773011677872,0.07540454,66311.0,66302.0,0.07697233]
[1773011679258,0.07540454,66311.0,66302.0,0.13837929]
[1773011679894,0.07551855,66314.0,66302.0,0.07697233]
[1773011680094,0.00846092,66313.0,66303.0,0.06140696]
[1773011680445,0.00846092,66312.0,66303.0,0.06140696]
[1773011680574,0.00846092,66311.0,66303.0,0.06140696]
[1773011680781,0.00011856,66314.0,66303.0,0.06140696]
[1773011680990,0.00846241,66313.0,66303.0,0.06140696]
[1773011681188,0.00846241,66312.0,66303.0,0.06140696]
[1773011681388,0.00846241,66311.0,66303.0,0.06140696]
[1773011681580,0.00011856,66314.0,66303.0,0.06140696]
[1773011681779,0.00846422,66313.0,66303.0,0.06140696]
[1773011682012,0.07540227,66311.0,66303.0,0.13681771]
[1773011682374,0.00846762,66310.0,66303.0,0.13681771]
[1773011682578,0.07562228,66311.0,66304.0,0.00156]
[1773011682730,0.00846762,66310.0,66304.0,0.00156]
[1773011682937,0.07562228,66311.0,66304.0,0.00156]
[1773011683204,0.00846762,66310.0,66304.0,0.00156]
[1773011683407,0.00846762,66309.0,66305.0,0.06132794]
[1773011683541,0.07562228,66311.0,66305.0,0.06132794]
[1773011683881,0.00846928,66310.0,66305.0,0.06132794]
[1773011684122,0.00011856,66314.0,66305.0,0.06132794]
[1773011684123,0.07551741,66314.0,66306.0,0.07540795]
[1773011684389,0.00847046,66313.0,66307.0,0.06132794]
[1773011684570,0.00847046,66312.0,66307.0,0.06132794]
[1773011684751,0.00847046,66311.0,66307.0,0.06132794]
[1773011684953,0.07551741,66314.0,66307.0,0.06288794]
[1773011685860,0.07535764,66316.0,66307.0,0.06288794]
[1773011686060,0.07535764,66316.0,66308.0,0.13664484]
[1773011686294,0.07535764,66316.0,66308.0,0.06123916]
[1773011686593,0.07535764,66316.0,66307.0,0.07708507]
[1773011686978,0.07535764,66316.0,66308.0,0.06121779]
[1773011687150,0.22573872,66316.0,66309.0,0.00156]
[1773011687501,0.07535764,66316.0,66309.0,0.00156]
[1773011688078,0.00022001,66317.0,66311.0,0.07540227]
[1773011688278,0.07561582,66317.0,66311.0,0.07540227]
[1773011688474,0.07561582,66317.0,66310.0,0.06121779]
[1773011688696,0.07561582,66317.0,66309.0,0.00156]
[1773011688894,0.07561582,66317.0,66310.0,0.00156]
[1773011689299,0.2259969,66317.0,66310.0,0.0627727]
[1773011689494,0.07561582,66317.0,66310.0,0.0627727]
[1773011689836,0.00022001,66317.0,66310.0,0.0627727]
[1773011690016,0.00022001,66319.0,66311.0,0.07540227]
[1773011690189,0.07561347,66319.0,66312.0,0.0612127]
[1773011690808,0.07562252,66320.0,66312.0,0.0612127]
[1773011691471,0.00022001,66316.0,66312.0,0.0612127]
[1773011692288,0.00022001,66316.0,66314.0,0.06112352]
[1773011692535,0.15038108,66326.0,66315.0,0.00156]
[1773011692733,0.0003503,66327.0,66317.0,0.32685154]
[1773011693024,0.00022001,66330.0,66319.0,0.06103563]
[1773011693164,0.00022001,66330.0,66321.0,0.06103563]
[1773011693627,0.07560072,66330.0,66321.0,0.06103563]
[1773011694915,0.07560072,66330.0,66322.0,0.00156]
[1773011696201,0.07560072,66330.0,66323.0,0.07538862]
[1773011696618,0.07495893,66330.0,66323.0,0.07538862]
[1773011697038,0.00846545,66329.0,66323.0,0.07538862]
[1773011697247,0.07537958,66331.0,66324.0,0.06106579]
[1773011697454,0.07537873,66332.0,66324.0,0.06106579]
[1773011698241,0.00156,66338.0,66324.0,0.06106579]
[1773011698242,0.07537158,66338.0,66326.0,0.06106579]
[1773011698699,0.00022001,66330.0,66326.0,0.06106579]
[1773011698885,0.00022001,66330.0,66328.0,0.06101592]
[1773011699139,0.00022001,66330.0,66327.0,0.00156]
[1773011699305,0.00022001,66330.0,66328.0,0.06101592]
[1773011699505,0.00022001,66337.0,66328.0,0.06101592]
[1773011699964,0.00061535,66337.0,66328.0,0.06101592]
[1773011700402,0.07537385,66336.0,66327.0,0.00156]
[1773011701188,0.00563,66350.0,66329.0,0.32685154]
[1773011701387,0.07618372,66344.0,66332.0,0.03555957]
[1773011701588,0.07618398,66344.0,66334.0,0.03555957]
[1773011701790,0.07618398,66344.0,66335.0,0.03555957]
[1773011701993,0.0003503,66346.0,66337.0,0.03555957]
[1773011702272,0.08098887,66350.0,66340.0,0.0753693]
[1773011702521,0.33617272,66359.0,66341.0,0.32685154]
[1773011702522,0.00156,66359.0,66341.0,0.32685154]
[1773011702698,0.12482214,66364.0,66342.0,0.32685154]
[1773011702699,0.07534323,66363.0,66342.0,0.32685154]
[1773011702875,0.07534323,66363.0,66345.0,0.03555957]
[1773011703086,0.34811222,66360.0,66345.0,0.00156]
[1773011703279,0.34811222,66360.0,66346.0,0.00156]
[1773011703280,0.00544177,66357.0,66346.0,0.00156]
[1773011703486,0.00544177,66353.0,66337.0,0.00011855]
[1773011703870,0.34811222,66347.0,66332.0,0.00156]
[1773011704002,0.00531406,66344.0,66332.0,0.00156]
[1773011704201,0.34811222,66341.0,66325.0,0.03555957]
[1773011704400,0.0753693,66340.0,66328.0,0.03555957]
[1773011705009,0.0753693,66340.0,66329.0,0.00156]
[1773011705562,0.0753693,66340.0,66330.0,0.00156]
[1773011706331,0.0753693,66340.0,66330.0,0.03684032]
[1773011706535,0.0753693,66342.0,66331.0,0.07537953]
[1773011706743,0.0753659,66343.0,66332.0,0.03528032]
[1773011706940,0.0753659,66344.0,66334.0,0.03528032]
[1773011707265,0.07535624,66352.0,66338.0,0.35061146]
[1773011707486,0.07535509,66353.0,66341.0,0.35061146]
[1773011707643,0.33456993,66352.0,66342.0,0.00156]
[1773011707988,0.3344265,66350.0,66340.0,0.00156]
[1773011708196,0.3344265,66350.0,66336.0,0.00156]
[1773011708197,0.3297946,66350.0,66336.0,0.00156]
[1773011708394,0.3297946,66350.0,66323.0,0.08101773]
[1773011708395,0.32967613,66346.0,66323.0,0.11629868]
[1773011708595,0.03414619,66342.0,66324.0,0.07694729]
[1773011708818,0.03482268,66338.0,66325.0,0.00156]
[1773011709009,0.32967613,66335.0,66310.0,0.1114005]
[1773011709204,0.03482268,66332.0,66311.0,0.0375571]
[1773011709350,0.32967613,66329.0,66312.0,0.00156]
[1773011709546,0.36449881,66328.0,66313.0,0.0359971]
[1773011709757,0.00156,66331.0,66315.0,0.0359971]
[1773011709976,0.07559476,66344.0,66319.0,0.0359971]
[1773011709977,0.32967613,66339.0,66319.0,0.0359971]
[1773011710193,0.36449881,66337.0,66320.0,0.0375571]
[1773011710555,0.07537612,66334.0,66321.0,0.00156]
[1773011710892,0.32967613,66333.0,66322.0,0.00156]
[1773011711151,0.32967613,66333.0,66313.0,0.35061146]
[1773011711367,0.03482268,66330.0,66313.0,0.00156]
[1773011711577,0.03482268,66326.0,66313.0,0.00156]
[1773011711780,0.32967613,66323.0,66313.0,0.00156]
[1773011711986,0.32967613,66321.0,66309.0,0.0002]
[1773011712184,0.03482268,66320.0,66306.0,0.0003162]
[1773011712378,0.03482268,66318.0,66306.0,0.0003162]
[1773011712591,0.07539658,66316.0,66307.0,0.00156]
[1773011713808,0.07539658,66316.0,66307.0,0.00195534]
[1773011714201,0.07524658,66316.0,66307.0,0.00195534]
[1773011714592,0.03482268,66314.0,66302.0,1e-08]
[1773011714790,0.03482268,66312.0,66302.0,0.00011857]
[1773011714994,0.36449881,66312.0,66295.0,0.0361971]
[1773011715199,0.03482268,66311.0,66297.0,0.00156]
[1773011715494,0.00011845,66312.0,66295.0,0.11161753]
[1773011715495,0.32967613,66310.0,66295.0,0.11161753]
[1773011715734,0.32967613,66310.0,66298.0,0.00156]
[1773011716125,0.32967613,66310.0,66300.0,0.0002]
[1773011716528,0.07551958,66312.0,66300.0,0.0002]
[1773011716730,0.07551958,66312.0,66300.0,0.0361971]
[1773011717271,0.40519571,66312.0,66300.0,0.0361971]
[1773011717620,0.40519571,66312.0,66300.0,1e-08]
[1773011717621,0.32967613,66310.0,66300.0,1e-08]
[1773011717820,0.36449881,66307.0,66298.0,1e-08]
[1773011718194,0.32967613,66305.0,66296.0,0.00633]
[1773011718545,0.07541023,66304.0,66295.0,1e-08]
[1773011718750,0.36449881,66303.0,66295.0,1e-08]
[1773011719155,0.07540227,66311.0,66297.0,0.35061146]
[1773011719359,0.00156,66315.0,66301.0,0.35061146]
[1773011719360,0.07539911,66314.0,66301.0,0.35061146]
[1773011719695,0.07539911,66314.0,66304.0,0.0359971]
[1773011719893,0.07539911,66314.0,66305.0,0.00156]
[1773011719894,0.32967613,66313.0,66305.0,0.00156]
[1773011720151,0.32967613,66313.0,66304.0,0.00156]
[1773011720725,0.07540113,66312.0,66304.0,0.00156]
[1773011721326,0.32967613,66311.0,66301.0,0.00011845]
[1773011721527,0.36449881,66311.0,66301.0,0.00167845]
[1773011721732,0.32967613,66309.0,66294.0,0.00176]
[1773011721899,0.36449881,66307.0,66294.0,0.00176]
[1773011722526,0.36449881,66307.0,66294.0,0.0002]
[1773011722717,0.40508408,66306.0,66294.0,0.0002]
[1773011722917,0.40508408,66306.0,66294.0,0.07718124]
[1773011723118,0.07540795,66306.0,66295.0,0.0359971]
[1773011723729,0.07540795,66306.0,66294.0,0.00176]
[1773011723932,0.32967613,66305.0,66294.0,0.00176]
[1773011724177,0.32967613,66303.0,66294.0,0.00176]
[1773011724383,0.36449881,66303.0,66291.0,0.0002]
[1773011724582,0.32967613,66301.0,66291.0,0.0002]
[1773011724854,0.07541478,66300.0,66291.0,0.0002]
[1773011725457,0.07541478,66300.0,66287.0,0.0005343]
[1773011725629,0.32967613,66297.0,66294.0,0.0002]
[1773011725802,0.03482268,66296.0,66288.0,0.00156]
[1773011726244,0.32967613,66298.0,66288.0,0.00156]
[1773011726497,0.36449881,66298.0,66288.0,0.00156]
[1773011726848,0.07541933,66296.0,66288.0,0.00156]
[1773011727696,0.32967613,66295.0,66284.0,0.0002]
[1773011727863,0.03482268,66292.0,66284.0,0.0002]
[1773011728046,0.32967613,66292.0,66278.0,0.0359971]
[1773011728265,0.03482268,66291.0,66278.0,0.11143682]
[1773011728452,0.07541933,66297.0,66281.0,0.0359971]
[1773011728713,0.0754125,66302.0,66285.0,0.0359971]
[1773011728921,0.07541202,66303.0,66288.0,0.42603989]
[1773011729122,0.07541202,66303.0,66289.0,0.0375571]
[1773011731061,0.07541202,66303.0,66290.0,0.00156]
[1773011731062,0.03482268,66301.0,66290.0,0.00156]
[1773011731370,0.07541202,66303.0,66290.0,0.00156]
[1773011731560,0.07541202,66303.0,66291.0,0.0359971]
[1773011732079,0.0753325,66303.0,66291.0,0.0359971]
[1773011732220,0.0753325,66303.0,66291.0,0.0375571]
[1773011732430,0.07540909,66307.0,66293.0,0.0359971]
[1773011732658,0.07540909,66307.0,66293.0,0.35061146]
[1773011732865,0.07552424,66309.0,66295.0,0.07542046]
[1773011733191,0.07552424,66309.0,66296.0,0.0359971]
[1773011733395,0.07552424,66309.0,66297.0,0.0375571]
[1773011734179,0.00011856,66309.0,66297.0,0.0375571]
[1773011735630,0.00011856,66309.0,66299.0,0.0359971]
[1773011737277,0.00011856,66309.0,66299.0,0.34208886]
[1773011737484,0.00011856,66309.0,66300.0,0.0359971]
[1773011737710,0.00011856,66309.0,66302.0,0.0359971]
[1773011738328,0.00011856,66309.0,66303.0,0.00156]
[1773011738500,0.00011856,66309.0,66304.0,0.0359971]
[1773011738802,0.07540044,66313.0,66304.0,0.0359971]
[1773011739415,0.07539662,66316.0,66305.0,0.34208886]
[1773011739619,0.07562224,66320.0,66310.0,0.34208886]
[1773011739800,0.07562224,66320.0,66311.0,0.03471781]
[1773011740814,0.0810189,66323.0,66312.0,0.03315781]
[1773011741010,0.0810189,66323.0,66313.0,0.03315781]
[1773011741425,0.00563,66323.0,66313.0,0.03315781]
[1773011741630,0.08101925,66323.0,66313.0,0.03315781]
[1773011741838,0.08101925,66323.0,66314.0,0.07539885]
[1773011742039,0.00022001,66319.0,66315.0,0.03315781]
[1773011742974,0.00022001,66319.0,66300.0,0.07541478]
[1773011743175,0.03271108,66317.0,66301.0,0.03471781]